bitfinex-derivatives/quotes_ETHF0:USTF0_20250322
["timestamp","ask_amount","ask_price","bid_price","bid_amount"]
[1742679570573,8.0308,1990.2,1990.1,0.00753561]
[1742679570765,11.2386,1990.2,1990.1,0.00753561]
[1742679571177,1.0054,1989.6,1989.5,4.21322]
[1742679571970,2.2812,1989.6,1989.5,4.21322]
[1742679572478,1.2758,1989.6,1989.5,4.21322]
[1742679573178,2.2812,1989.6,1989.5,4.21322]
[1742679573578,1.2758,1989.6,1989.5,4.21322]
[1742679574082,2.2812,1989.6,1989.5,4.21322]
[1742679577281,2.2812,1989.6,1989.5,1.00542]
[1742679577673,2.2812,1989.6,1989.5,2.29172]
[1742679581288,1.2758,1989.6,1989.5,2.29172]
[1742679581675,2.2812,1989.6,1989.5,2.29172]
[1742679595998,2.2812,1989.6,1989.5,1.00542]
[1742679597499,2.2812,1989.6,1989.5,2.32542]
[1742679600294,1.2758,1989.6,1989.5,1.00545]
[1742679600492,1.2758,1989.6,1989.4,3.2078]
[1742679600792,1.0055,1989.4,1989.2,3.2078]
[1742679600999,1.3819,1989.3,1989.2,4.86418]
[1742679601308,1.3819,1989.3,1989.2,6.26001]
[1742679601599,3.23,1989.5,1989.4,1.0055]
[1742679601905,3.244,1989.9,1989.8,1.0053]
[1742679602100,0.83060719,1990.0,1989.7,5.55543]
[1742679602301,1.0053,1989.8,1989.7,5.55543]
[1742679602801,2.3872,1989.8,1989.7,5.55543]
[1742679603106,3.21780719,1989.8,1989.7,5.55543]
[1742679603499,3.21780719,1989.8,1989.7,5.55545]
[1742679606311,3.21780719,1989.8,1989.7,4.5501]
[1742679606504,2.3872,1989.8,1989.7,4.5501]
[1742679606709,2.3872,1989.8,1989.7,5.8799]
[1742679608911,2.3872,1989.8,1989.7,6.88525]
[1742679612404,2.3872,1989.8,1989.7,3.67745]
[1742679614519,3.31862856,1989.8,1989.7,3.67745]
[1742679614710,3.234,1990.1,1989.7,3.67745]
[1742679615015,5.64199,1990.1,1990.0,1.00517]
[1742679615311,4.23919,1990.1,1990.0,1.00517]
[1742679615512,5.16270165,1990.1,1990.0,2.97377]
[1742679615713,4.23919,1990.1,1990.0,2.97377]
[1742679616011,5.16270165,1990.1,1990.0,2.97377]
[1742679616914,5.16270165,1990.1,1990.0,1.9686]
[1742679618015,1.92870165,1990.1,1990.0,2.9738]
[1742679618209,1.00519,1990.1,1990.0,2.9738]
[1742679621721,5.16063165,1990.2,1990.1,1.00515]
[1742679622020,5.16063165,1990.2,1990.1,2.36535]
[1742679622211,5.16063165,1990.2,1990.1,3.02835]
[1742679622412,4.23712,1990.2,1990.1,3.02835]
[1742679622811,4.23307,1990.3,1990.2,1.0051]
[1742679623120,1.01256561,1990.4,1990.3,1.00505]
[1742679623416,1.01256561,1990.4,1990.3,0.68]
[1742679623720,1.00505,1990.3,1990.2,1.3602]
[1742679623912,1.00505,1990.3,1990.2,2.3653]
[1742679624931,1.00505,1990.3,1990.2,1.3602]
[1742679625220,1.0051,1990.2,1990.1,4.5508]
[1742679625419,1.702,1990.2,1990.1,4.5508]
[1742679626214,1.702,1990.2,1990.1,5.8435]
[1742679626423,1.702,1990.2,1990.1,6.84865]
[1742679628824,1.0051,1990.2,1990.1,6.84865]
[1742679629326,2.39299,1990.3,1990.1,6.84865]
[1742679629524,2.39299,1990.3,1990.2,1.3108]
[1742679629724,1.00509,1990.3,1990.2,1.3108]
[1742679629927,1.0051,1990.2,1990.1,5.55595]
[1742679634246,1.0051,1990.2,1990.1,4.5508]
[1742679634843,1.0051,1990.2,1990.1,5.9166]
[1742679637645,3.42199724,1990.3,1989.9,7.44101]
[1742679637849,3.42199724,1990.3,1989.9,9.41821]
[1742679638034,3.42199724,1990.3,1990.0,2.2938]
[1742679638238,4.34426663,1990.3,1990.0,2.2938]
[1742679638943,1.00515,1990.1,1990.0,2.2938]
[1742679648348,1.00515,1990.1,1990.0,2.9498]
[1742679649345,2.33345,1990.1,1990.0,2.9498]
[1742679656755,2.33345,1990.1,1990.0,6.1576]
[1742679657151,1.3283,1990.1,1990.0,6.1576]
[1742679658159,1.0051,1990.2,1990.1,1.00515]
[1742679658461,1.3402,1990.2,1990.1,1.00515]
[1742679660359,2.3453,1990.2,1990.1,1.00515]
[1742679660561,1.3402,1990.2,1990.1,1.00515]
[1742679663455,1.3402,1990.2,1990.1,4.21295]
[1742679665365,0.00753561,1990.4,1990.3,1.00505]
[1742679665556,1.33323561,1990.4,1990.3,1.00505]
[1742679665861,1.33323561,1990.4,1990.3,1.69805]
[1742679668763,1.33323561,1990.4,1990.3,3.02825]
[1742679672367,1.33323561,1990.4,1990.3,6.23605]
[1742679683474,1.33323561,1990.4,1990.3,3.02825]
[1742679683973,1.33323561,1990.4,1990.3,6.23605]
[1742679692180,1.33323561,1990.4,1990.3,3.02825]
[1742679692580,1.33323561,1990.4,1990.3,6.23605]
[1742679695482,1.33323561,1990.4,1990.3,3.02825]
[1742679695669,1.33323561,1990.4,1990.3,6.23605]
[1742679700687,1.33323561,1990.4,1990.3,3.02825]
[1742679700879,1.33323561,1990.4,1990.3,6.23605]
[1742679701283,1.33323561,1990.4,1990.3,3.02825]
[1742679701880,1.33323561,1990.4,1990.3,6.23605]
[1742679702586,1.33323561,1990.4,1990.3,3.02825]
[1742679702887,1.33323561,1990.4,1990.3,6.23605]
[1742679703486,1.33323561,1990.4,1990.3,3.02825]
[1742679703683,1.33323561,1990.4,1990.3,6.23605]
[1742679706288,2.33823561,1990.4,1990.3,6.23605]
[1742679706482,1.33323561,1990.4,1990.3,6.23605]
[1742679708589,1.33323561,1990.4,1990.3,3.02825]
[1742679708790,1.33323561,1990.4,1990.3,6.23605]
[1742679720598,1.33323561,1990.4,1990.3,3.02825]
[1742679720792,1.33323561,1990.4,1990.3,6.23605]
[1742679724290,2.33823561,1990.4,1990.3,3.2078]
[1742679724601,1.00515,1990.1,1990.0,1.00517]
[1742679725294,2.95895,1990.1,1990.0,1.00517]
[1742679726295,1.0052,1990.0,1989.9,5.56461]
[1742679726604,2.9411,1990.0,1989.9,4.21301]
[1742679728202,2.9411,1990.0,1989.9,5.52091]
[1742679730598,2.9411,1990.0,1989.9,2.31311]
[1742679730798,2.9411,1990.0,1989.9,5.52091]
[1742679732507,2.9411,1990.0,1989.9,2.31311]
[1742679732708,2.9411,1990.0,1989.9,5.52091]
[1742679740615,2.9411,1990.0,1989.9,4.21301]
[1742679741200,2.9411,1990.0,1989.9,3.2078]
[1742679743199,6.1231,1990.0,1989.9,3.2078]
[1742679745706,1.00525,1989.9,1989.8,2.30376]
[1742679745900,2.38815,1989.9,1989.8,5.51156]
[1742679751315,2.38815,1989.9,1989.8,4.5063]
[1742679753516,2.38815,1989.9,1989.8,5.5116]
[1742679762225,2.38815,1989.9,1989.8,4.5063]
[1742679762429,2.38815,1989.9,1989.8,1.2985]
[1742679762617,3.30006474,1989.9,1989.8,1.2985]
[1742679764021,2.38815,1989.9,1989.8,1.2985]
[1742679765034,1.00535,1989.7,1989.6,4.21317]
[1742679765835,2.38995,1989.7,1989.6,5.56847]
[1742679768333,2.38995,1989.7,1989.6,2.36067]
[1742679768533,2.38995,1989.7,1989.6,4.5631]
[1742679769429,3.04535,1989.7,1989.6,4.5631]
[1742679771227,3.04535,1989.7,1989.6,3.2078]
[1742679771527,1.0054,1989.6,1989.5,1.309]
[1742679771727,5.5837,1989.6,1989.5,2.6002]
[1742679772122,5.5837,1989.6,1989.4,3.2078]
[1742679772123,1.00545,1989.5,1989.4,3.2078]
[1742679772325,1.3953,1989.5,1989.2,3.2078]
[1742679772525,1.00566,1989.1,1989.0,3.2078]
[1742679772731,1.00566,1989.1,1989.0,3.8571]
[1742679772930,2.40096,1989.1,1989.0,3.8571]
[1742679773830,2.40096,1989.1,1989.0,5.1483]
[1742679775832,1.00576,1988.9,1988.8,3.9097]
[1742679776034,1.00576,1988.9,1988.8,0.7019]
[1742679776232,1.00586,1988.7,1988.6,3.8865]
[1742679776537,4.18886,1988.7,1988.6,3.8865]
[1742679776930,4.86856,1988.7,1988.6,3.8865]
[1742679777135,1.00611,1988.2,1988.1,3.2078]
[1742679777335,4.19711,1988.2,1988.1,3.2078]
[1742679778136,4.19711,1988.2,1988.0,1.2807]
[1742679778137,1.00616,1988.1,1988.0,1.2807]
[1742679778441,2.34546,1988.1,1988.0,1.2807]
[1742679784137,1.00616,1988.1,1988.0,1.2807]
[1742679784334,1.00616,1988.1,1988.0,2.28691]
[1742679784747,3.189,1988.2,1988.1,1.00616]
[1742679784951,4.20662561,1988.3,1988.2,1.00611]
[1742679785246,3.20053561,1988.3,1988.2,1.67741]
[1742679785437,3.20053561,1988.3,1988.2,3.01671]
[1742679786348,4.20659561,1988.3,1988.2,3.01671]
[1742679789347,1.01359561,1988.3,1988.2,3.01671]
[1742679790855,0.00753561,1988.3,1988.2,3.01671]
[1742679798153,0.00753561,1988.3,1988.2,6.20771]
[1742679809354,46.466,1989.2,1988.8,1.00581]
[1742679809555,1.3537,1989.1,1989.0,1.00571]
[1742679809963,1.3537,1989.1,1989.0,1.67331]
[1742679810164,4.2016,1989.3,1989.2,1.00561]
[1742679810362,1.359,1989.3,1989.2,1.00561]
[1742679810552,2.6349,1989.3,1989.2,1.00561]
[1742679812957,1.00561,1989.2,1989.1,1.01315561]
[1742679813258,2.28151,1989.2,1989.1,1.01315561]
[1742679814859,1.2759,1989.2,1989.1,1.01315561]
[1742679816662,2.28151,1989.2,1989.1,1.01315561]
[1742679819769,2.28151,1989.2,1989.1,1.01319561]
[1742679820070,2.28151,1989.2,1989.1,0.00753561]
[1742679820464,2.28151,1989.2,1989.1,1.01319561]
[1742679820862,5.47251,1989.2,1989.1,1.01319561]
[1742679821057,5.47251,1989.2,1989.1,0.00753561]
[1742679827674,7.97251,1989.2,1989.1,0.00753561]
[1742679827863,11.09800687,1989.2,1988.7,4.21364]
[1742679828067,1.00581,1988.8,1988.7,1.00584]
[1742679828469,1.00581,1988.8,1988.7,1.00586]
[1742679828670,1.00588,1988.7,1988.6,1.00587]
[1742679829273,1.00588,1988.7,1988.6,2.35487]
[1742679829873,1.00588,1988.7,1988.6,1.00587]
[1742679830273,1.00591,1988.6,1988.5,5.56272]
[1742679830675,1.00591,1988.6,1988.5,3.2078]
[1742679831076,3.06951,1988.6,1988.5,3.2078]
[1742679831771,1.00611,1988.2,1988.1,3.9051]
[1742679832175,1.00611,1988.2,1988.1,3.2078]
[1742679832573,2.38211,1988.2,1988.1,3.2078]
[1742679833089,7.08939,1988.2,1987.9,3.2078]
[1742679833277,2.0489,1988.1,1987.9,3.2078]
[1742679833473,5.58321,1988.0,1987.9,3.2078]
[1742679833675,3.201,1988.0,1987.9,4.21406]
[1742679833878,3.201,1988.0,1987.9,5.51376]
[1742679834179,1.00615,1988.2,1987.9,4.5075]
[1742679834180,4.20915,1988.2,1987.9,4.5075]
[1742679834479,5.58515,1988.2,1988.0,2.29487]
[1742679834676,3.203,1988.2,1988.1,2.29486]
[1742679836177,4.20911,1988.2,1988.1,2.29486]
[1742679837781,4.20911,1988.2,1988.1,1.2887]
[1742679838472,4.20911,1988.2,1988.1,2.29486]
[1742679839476,4.20911,1988.2,1988.1,1.2887]
[1742679840277,4.20911,1988.2,1988.1,2.29486]
[1742679840479,1.00611,1988.2,1988.1,1.2887]
[1742679840680,1.01362561,1988.3,1988.2,1.00611]
[1742679840879,1.01362561,1988.3,1988.2,3.00091]
[1742679848686,1.00614,1988.2,1988.1,1.00612]
[1742679848978,1.00616,1988.1,1988.0,4.21398]
[1742679849185,2.28985,1988.2,1988.1,1.00616]
[1742679849385,1.00616,1988.1,1988.0,4.21397]
[1742679849584,2.28986,1988.1,1988.0,4.21397]
[1742679855488,2.28986,1988.1,1988.0,1.00617]
[1742679855690,2.28986,1988.1,1988.0,4.21397]
[1742679857296,2.28986,1988.1,1988.0,1.00617]
[1742679857494,2.28986,1988.1,1988.0,4.21397]
[1742679857695,5.49386,1988.1,1988.0,3.2078]
[1742679857999,1.00629,1987.9,1987.8,3.2078]
[1742679858601,2.36629,1987.9,1987.8,3.2078]
[1742679859009,1.36,1987.9,1987.8,4.2141]
[1742679859595,2.36626,1987.9,1987.8,4.2141]
[1742679861101,5.56826,1987.9,1987.8,4.2141]
[1742679861296,1.00637,1987.7,1987.6,3.2078]
[1742679861492,4.21637,1987.7,1987.6,3.2078]
[1742679861889,4.86307,1987.7,1987.6,3.2078]
[1742679863199,2.51608,1987.6,1987.3,3.2078]
[1742679863399,3.211,1987.5,1987.3,3.2078]
[1742679863599,4.4807,1987.5,1987.3,3.2078]
[1742679863798,1.2697,1987.4,1987.3,3.2078]
[1742679864208,2.27622,1987.4,1987.3,3.2078]
[1742679865794,2.27622,1987.4,1987.3,4.21437]
[1742679866700,2.27622,1987.4,1987.3,3.2078]
[1742679866907,2.94142,1987.4,1987.3,3.2078]
[1742679868995,2.94142,1987.4,1987.3,4.5645]
[1742679869802,2.94142,1987.4,1987.3,5.57107]
[1742679870309,2.94142,1987.4,1987.0,2.51678]
[1742679870310,1.9349,1987.4,1987.0,4.21448]
[1742679870513,1.00666,1987.2,1987.0,3.2078]
[1742679870710,1.00666,1987.2,1987.1,3.06086]
[1742679871009,4.22213561,1987.3,1987.2,1.00662]
[1742679871322,3.21553561,1987.3,1987.2,2.36332]
[1742679871508,0.00753561,1987.3,1987.2,2.36332]
[1742679875007,1.01410561,1987.3,1987.2,2.36332]
[1742679875208,0.00753561,1987.3,1987.2,2.36332]
[1742679877501,0.00753561,1987.3,1987.1,1.3563]
[1742679877708,1.00662,1987.2,1987.1,3.73325]
[1742679878510,1.00662,1987.2,1987.0,3.2078]
[1742679878511,1.00667,1987.1,1987.0,3.2078]
[1742679878710,1.70857,1987.1,1987.0,3.2078]
[1742679879214,2.40177,1987.1,1987.0,3.2078]
[1742679879804,2.40177,1987.1,1987.0,4.21452]
[1742679880814,5.63377,1987.1,1987.0,4.21452]
[1742679881313,5.63377,1987.1,1987.0,5.49462]
[1742679882309,5.63377,1987.1,1987.0,4.4879]
[1742679883715,4.23867,1987.1,1987.0,5.1306]
[1742679885706,4.23867,1987.1,1987.0,1.9228]
[1742679888718,4.23867,1987.1,1987.0,2.92952]
[1742679889415,4.23867,1987.1,1987.0,1.9228]
[1742679892514,4.23867,1987.1,1986.9,3.02273]
[1742679892715,4.23867,1987.1,1987.0,1.3709]
[1742679895023,1.00665,1987.2,1987.0,2.37762]
[1742679895224,4.22865,1987.2,1987.1,3.06277]
[1742679895418,3.222,1987.2,1987.1,2.0561]
[1742679895623,3.21533561,1987.3,1987.2,1.00662]
[1742679895821,3.21533561,1987.3,1987.2,3.10242]
[1742679896219,0.00753561,1987.3,1987.2,3.10242]
[1742679897728,3.2078,1987.5,1987.4,1.00652]
[1742679898630,3.2078,1987.5,1987.4,4.25052]
[1742679898935,3.2078,1987.8,1987.7,1.00636]
[1742679899729,0.00753561,1987.9,1987.7,1.00636]
[1742679899730,0.00753561,1987.9,1987.8,1.00631]
[1742679899928,0.00753561,1987.9,1987.8,5.53771]
[1742679901039,0.00753561,1987.9,1987.8,6.21491]
[1742679904534,0.00753561,1987.9,1987.8,2.96191]
[1742679907641,0.00753561,1987.9,1987.8,1.68351]
[1742679909130,0.00753561,1987.9,1987.8,3.05971]
[1742679909336,1.38173561,1987.9,1987.8,3.05971]
[1742679913049,0.00753561,1987.9,1987.8,3.05971]
[1742679915844,1.01383561,1987.9,1987.7,4.21413]
[1742679916048,1.3411,1987.8,1987.7,4.21413]
[1742679916247,1.3411,1987.8,1987.7,5.52093]
[1742679918449,0.00753561,1987.9,1987.8,1.00631]
[1742679918752,1.40333561,1987.9,1987.8,2.34081]
[1742679921958,0.00753561,1987.9,1987.8,2.34081]
[1742679923660,0.00753561,1987.9,1987.8,5.54861]
[1742679928563,0.00753561,1987.9,1987.8,2.34081]
[1742679928764,0.00753561,1987.9,1987.8,5.54861]
[1742679932368,1.2818,1988.1,1988.0,1.00621]
[1742679933060,1.2818,1988.1,1988.0,2.37241]
[1742679937967,0.00753561,1988.2,1988.1,1.00616]
[1742679938174,3.2078,1988.3,1988.2,1.00611]
[1742679938568,3.2078,1988.3,1988.2,3.04211]
[1742679940474,1.85227789,1988.4,1988.3,1.00606]
[1742679940673,4.14420081,1988.4,1988.3,1.00606]
[1742679940873,5.06007789,1988.4,1988.3,1.00606]
[1742679941274,6.35117789,1988.4,1988.3,1.00606]
[1742679943572,6.35117789,1988.4,1988.3,1.69656]
[1742679943779,6.35117789,1988.4,1988.3,2.37436]
[1742679944170,6.35117789,1988.4,1988.3,1.00606]
[1742679944373,5.42231269,1988.4,1988.3,1.00606]
[1742679946483,6.42832269,1988.4,1988.3,1.00606]
[1742679949682,5.42231269,1988.4,1988.3,1.00606]
[1742679952794,5.42231269,1988.4,1988.3,4.25706]
[1742679968510,2.21451269,1988.4,1988.3,4.25706]
[1742679968708,4.50643561,1988.4,1988.3,4.25706]
[1742679969108,2.21451269,1988.4,1988.3,4.25706]
[1742679969313,4.50643561,1988.4,1988.3,4.25706]
[1742679969802,5.42231269,1988.4,1988.3,4.25706]
[1742679973205,4.13121269,1988.4,1988.3,4.25706]
[1742679973406,3.21533561,1988.4,1988.3,4.25706]
[1742679973713,4.13121269,1988.4,1988.3,4.25706]
[1742679973906,3.21533561,1988.4,1988.3,4.25706]
[1742679975312,4.58343561,1988.4,1988.3,4.25706]
[1742679975514,5.94353561,1988.4,1988.3,4.25706]
[1742679978515,4.58343561,1988.4,1988.3,4.25706]
[1742679979113,3.21533561,1988.4,1988.3,4.25706]
[1742679982411,3.2078,1989.1,1989.0,1.00571]
[1742679982720,2.7168,1989.4,1989.0,3.2078]
[1742679982913,1.3768,1989.3,1989.2,1.00558]
[1742679985313,1.3768,1989.3,1989.2,1.00561]
[1742679987815,0.00753561,1989.4,1989.3,1.00555]
[1742679988620,0.00753561,1989.4,1989.2,1.2886]
[1742679988821,0.00753561,1989.4,1989.3,1.00555]
[1742679989119,1.36113561,1989.4,1989.3,1.00555]
[1742679991311,1.36113561,1989.4,1989.3,4.92275]
[1742679991622,1.36113561,1989.4,1989.3,5.60505]
[1742679992218,0.00753561,1989.4,1989.3,5.60505]
[1742679997019,3.2078,1989.6,1989.5,1.00545]
[1742679997220,3.2078,1989.6,1989.5,4.24545]
[1742679997516,1.351,1989.7,1989.6,1.0054]
[1742679997721,1.351,1989.7,1989.6,2.3461]
[1742679999422,1.351,1989.7,1989.6,5.5539]
[1742680001120,1.351,1989.7,1989.6,6.2278]
[1742680002329,1.351,1989.7,1989.6,4.2132]
[1742680002529,1.351,1989.7,1989.6,6.1619]
[1742680004833,1.351,1989.7,1989.6,4.2132]
[1742680005027,1.351,1989.7,1989.6,5.5803]
[1742680007326,1.351,1989.7,1989.6,4.2132]
[1742680007531,1.351,1989.7,1989.6,5.5293]
[1742680009535,1.351,1989.7,1989.6,6.1684]
[1742680010136,1.351,1989.7,1989.6,4.2132]
[1742680010436,1.351,1989.7,1989.6,6.8092]
[1742680011335,1.351,1989.7,1989.6,4.2132]
[1742680012036,1.351,1989.7,1989.6,5.5507]
[1742680015542,0.00753561,1989.8,1989.7,1.00535]
[1742680015732,1.39753561,1989.8,1989.7,5.59655]
[1742680020737,1.39753561,1989.8,1989.7,1.00535]
[1742680022647,1.39753561,1989.8,1989.7,2.34645]
[1742680025945,0.00753561,1989.8,1989.7,2.34645]
[1742680026846,1.29513561,1989.8,1989.7,2.34645]
[1742680029348,0.00753561,1989.8,1989.7,2.34645]
[1742680050560,0.00753561,1989.8,1989.7,1.00535]
[1742680050763,1.36013561,1989.8,1989.7,1.00535]
[1742680051160,2.25964014,1989.8,1989.7,1.00535]
[1742680051360,3.53644014,1989.8,1989.6,1.00538]
[1742680051560,1.3791,1989.7,1989.6,1.00538]
[1742680062164,1.3791,1989.7,1989.6,1.68958]
[1742680062565,1.3791,1989.7,1989.6,3.04628]
[1742680064269,1.3791,1989.7,1989.6,6.24428]
[1742680067879,0.00753561,1989.8,1989.7,1.00535]
[1742680068080,0.9362425,1989.8,1989.7,2.30725]
[1742680068379,0.00753561,1989.8,1989.7,2.30725]
[1742680069475,1.39283561,1989.8,1989.7,2.30725]
[1742680069675,2.29234014,1989.8,1989.7,2.30725]
[1742680069876,3.22104703,1989.8,1989.7,2.30725]
[1742680071184,2.3215425,1989.8,1989.7,2.30725]
[1742680071381,2.29234014,1989.8,1989.7,2.30725]
[1742680071885,3.22104703,1989.8,1989.7,2.30725]
[1742680072784,2.29234014,1989.8,1989.7,2.30725]
[1742680077486,3.22165299,1989.8,1989.7,2.30725]
[1742680081387,3.22165299,1989.8,1989.7,1.3019]
[1742680081694,4.22695299,1989.8,1989.7,2.30725]
[1742680081994,4.22695299,1989.8,1989.6,1.00539]
[1742680082196,3.64485,1989.7,1989.6,2.28789]
[1742680082387,3.53900453,1989.7,1989.6,2.28789]
[1742680084898,4.54435453,1989.7,1989.6,2.28789]
[1742680085590,6.74680453,1989.7,1989.2,3.2078]
[1742680085893,2.20590453,1989.6,1989.2,5.54058]
[1742680086094,1.00553,1989.4,1989.3,1.3808]
[1742680086490,2.34493,1989.4,1989.3,1.3808]
[1742680086701,1.3394,1989.4,1989.3,1.3808]
[1742680087087,2.6458,1989.4,1989.3,1.3808]
[1742680087900,3.6513,1989.4,1989.3,1.3808]
[1742680088098,4.55155948,1989.4,1989.3,1.3808]
[1742680088500,2.6458,1989.4,1989.3,1.3808]
[1742680089493,2.6458,1989.4,1989.3,2.38635]
[1742680089800,1.9509,1989.4,1989.3,2.38635]
[1742680091900,1.3064,1989.4,1989.3,2.38635]
[1742680092104,0.90045191,1989.6,1989.5,1.00545]
[1742680092307,0.00753561,1989.8,1989.7,1.00535]
[1742680092498,0.90782657,1989.8,1989.7,1.00535]
[1742680092807,0.90782657,1989.8,1989.7,2.37405]
[1742680093202,3.21920821,1989.8,1989.7,2.37405]
[1742680093797,4.54630821,1989.8,1989.7,2.37405]
[1742680094199,4.54630821,1989.8,1989.4,3.2078]
[1742680094393,1.00542,1989.6,1989.4,4.21327]
[1742680094704,1.9764,1989.5,1989.4,5.60817]
[1742680095105,2.6441,1989.5,1989.4,5.60817]
[1742680100808,2.6441,1989.5,1989.4,2.40037]
[1742680105214,1.9847,1989.5,1989.4,2.40037]
[1742680105415,1.9847,1989.5,1989.4,3.03767]
[1742680106018,1.317,1989.5,1989.4,3.03767]
[1742680109918,3.27566873,1989.7,1989.5,1.00541]
[1742680110118,0.89920873,1989.7,1989.6,1.0054]
[1742680110321,0.92992752,1989.7,1989.6,1.0054]
[1742680110915,5.45316313,1989.8,1989.7,1.00535]
[1742680111111,5.04481145,1989.8,1989.7,1.00535]
[1742680112519,4.11488393,1989.8,1989.7,1.00535]
[1742680114725,3.21533561,1989.8,1989.7,1.00535]
[1742680115123,0.00753561,1989.8,1989.7,1.00535]
[1742680115323,3.21533561,1989.8,1989.7,1.00535]
[1742680117521,4.11488393,1989.8,1989.7,1.00535]
[1742680117920,5.04478302,1989.8,1989.7,1.00535]
[1742680118222,6.44758302,1989.8,1989.7,1.00535]
[1742680118721,5.04478302,1989.8,1989.7,1.00535]
[1742680118923,5.04478302,1989.8,1989.7,1.69875]
[1742680119120,4.11488393,1989.8,1989.7,1.69875]
[1742680119721,5.04478302,1989.8,1989.7,1.69875]
[1742680121429,6.33248302,1989.8,1989.7,1.69875]
[1742680122428,5.40258393,1989.8,1989.7,1.69875]
[1742680123331,6.3324888,1989.8,1989.7,1.69875]
[1742680125132,3.1246888,1989.8,1989.7,1.69875]
[1742680125338,4.50303561,1989.8,1989.7,1.69875]
[1742680125633,5.40258393,1989.8,1989.7,1.69875]
[1742680129138,5.40258393,1989.8,1989.7,3.04485]
[1742680132037,2.19478393,1989.8,1989.7,3.04485]
[1742680132238,4.50303561,1989.8,1989.7,3.04485]
[1742680132438,5.40258393,1989.8,1989.7,3.04485]
[1742680135037,6.40788393,1989.8,1989.7,2.0395]
[1742680136334,6.40788393,1989.8,1989.7,3.04485]
[1742680136533,5.40258393,1989.8,1989.7,3.04485]
[1742680138727,6.33261973,1989.8,1989.7,3.04485]
[1742680139133,5.40258393,1989.8,1989.7,3.04485]
[1742680140341,3.1249597,1989.8,1989.7,3.04485]
[1742680140540,5.43321138,1989.8,1989.7,3.04485]
[1742680140740,5.40258393,1989.8,1989.7,3.04485]
[1742680141341,6.3327597,1989.8,1989.7,3.04485]
[1742680145544,6.3327597,1989.8,1989.7,2.35145]
[1742680146646,3.1249597,1989.8,1989.7,2.35145]
[1742680146942,5.43321138,1989.8,1989.7,2.35145]
[1742680147141,6.3327597,1989.8,1989.7,2.35145]
[1742680147534,3.1249597,1989.8,1989.7,2.35145]
[1742680147735,2.22541138,1989.8,1989.7,2.35145]
[1742680147945,1.29523561,1989.8,1989.7,2.35145]
[1742680148244,4.50303561,1989.8,1989.7,2.35145]
[1742680148444,6.3327597,1989.8,1989.7,2.35145]
[1742680150140,3.1249597,1989.8,1989.7,2.35145]
[1742680150337,6.3327597,1989.8,1989.7,2.35145]
[1742680150848,5.0450597,1989.8,1989.7,2.35145]
[1742680151040,5.48718393,1989.8,1989.7,2.35145]
[1742680161373,2.27938393,1989.8,1989.7,2.35145]
[1742680161663,1.37983561,1989.8,1989.7,2.35145]
[1742680162068,2.27938393,1989.8,1989.7,2.35145]
[1742680162573,3.20798871,1989.8,1989.7,2.35145]
[1742680165658,2.30844039,1989.8,1989.7,2.35145]
[1742680165862,2.27938393,1989.8,1989.7,2.35145]
[1742680166259,3.20798871,1989.8,1989.7,2.35145]
[1742680166859,2.30844039,1989.8,1989.7,2.35145]
[1742680167172,3.20798871,1989.8,1989.7,2.35145]
[1742680169775,2.27938393,1989.8,1989.7,2.35145]
[1742680171469,2.27938393,1989.8,1989.7,1.00535]
[1742680172276,2.27938393,1989.8,1989.7,2.41095]
[1742680177070,3.28468393,1989.8,1989.7,2.41095]
[1742680177268,3.28468393,1989.8,1989.7,1.00535]
[1742680177472,3.28468393,1989.8,1989.7,2.39455]
[1742680177678,2.27938393,1989.8,1989.7,2.39455]
[1742680177977,3.20756321,1989.8,1989.7,2.39455]
[1742680185283,2.27938393,1989.8,1989.7,2.39455]
[1742680189580,3.20726604,1989.8,1989.7,2.39455]
[1742680192190,2.30771772,1989.8,1989.7,2.39455]
[1742680192393,3.20726604,1989.8,1989.7,2.39455]
[1742680195386,2.30771772,1989.8,1989.7,2.39455]
[1742680195588,1.37983561,1989.8,1989.7,2.39455]
[1742680195786,2.27938393,1989.8,1989.7,2.39455]
[1742680196091,3.20726604,1989.8,1989.7,2.39455]
[1742680196292,2.30771772,1989.8,1989.7,2.39455]
[1742680196687,3.20726604,1989.8,1989.7,3.03485]
[1742680197597,2.30771772,1989.8,1989.7,3.03485]
[1742680197997,3.20726604,1989.8,1989.7,3.03485]
[1742680201093,3.20726604,1989.8,1989.4,3.2078]
[1742680201293,1.00544,1989.6,1989.4,1.00549]
[1742680201488,1.90498832,1989.6,1989.5,1.3797]
[1742680201895,2.83287043,1989.6,1989.5,1.3797]
[1742680202094,2.83287043,1989.6,1989.5,2.38515]
[1742680203493,1.82743043,1989.6,1989.5,2.38515]
[1742680204692,5.03523043,1989.6,1989.5,2.38515]
[1742680204889,6.04063043,1989.6,1989.5,1.3797]
[1742680205092,1.00545,1989.5,1989.4,1.00547]
[1742680205287,1.00545,1989.5,1989.4,2.33597]
[1742680206094,1.00545,1989.5,1989.4,1.00547]
[1742680209295,4.13568211,1989.6,1989.4,1.00547]
[1742680209497,0.92788211,1989.6,1989.5,1.00545]
[1742680209699,0.92788211,1989.6,1989.5,6.77795]
[1742680209903,0.00753561,1989.8,1989.7,1.00535]
[1742680211900,4.10363104,1989.9,1989.8,1.0053]
[1742680212204,3.2078,1989.9,1989.8,2.3897]
[1742680216806,3.2078,1989.9,1989.8,3.0255]
[1742680217105,1.82713336,1990.0,1989.9,1.00525]
[1742680217291,0.93121343,1990.0,1989.9,2.95095]
[1742680217497,4.13901343,1990.0,1989.9,2.95095]
[1742680217797,4.10868008,1990.0,1989.9,2.95095]
[1742680218111,3.21276015,1990.0,1989.9,2.95095]
[1742680219492,0.00496015,1990.0,1989.9,2.95095]
[1742680219705,4.54406015,1990.0,1989.9,2.95095]
[1742680219897,5.43998008,1990.0,1989.9,2.95095]